[Event "Early-Titled-Tuesday-Blitz-May-07-2024"]
[Site "Chess.com"]
[Date "2024.05.07"]
[Round "7"]
[White "Amiciterno"]
[Black "lefonghua"]
[Result "0-1"]
[WhiteElo "2415"]
[BlackElo "2570"]
[TimeControl "180+1"]
[EndTime "9:21:51 PDT"]
[Termination "lefonghua won by checkmate"]

1. Nf3 {[%clk 0:02:54.8]} 1... Nf6 {[%clk 0:03:00.2]} 2. d4 {[%clk 0:02:53.8]}
2... g6 {[%clk 0:03:00.5]} 3. c4 {[%clk 0:02:51.5]} 3... Bg7 {[%clk 0:03:00.4]}
4. Nc3 {[%clk 0:02:52.4]} 4... O-O {[%clk 0:03:00.5]} 5. e4 {[%clk 0:02:52.7]}
5... d6 {[%clk 0:03:01.2]} 6. Be2 {[%clk 0:02:53]} 6... Bg4 {[%clk 0:03:01.5]}
7. O-O {[%clk 0:02:52.2]} 7... Nfd7 {[%clk 0:03:00.5]} 8. Be3 {[%clk 0:02:28.5]}
8... c5 {[%clk 0:02:59.2]} 9. Rc1 {[%clk 0:02:01.1]} 9... Bxf3 {[%clk
0:02:50.9]} 10. Bxf3 {[%clk 0:02:01.6]} 10... Nc6 {[%clk 0:02:51]} 11. d5 {[%clk
0:01:49.2]} 11... Nd4 {[%clk 0:02:49]} 12. Be2 {[%clk 0:01:47.5]} 12... e5
{[%clk 0:02:43.9]} 13. dxe6 {[%clk 0:01:45.4]} 13... fxe6 {[%clk 0:02:42.3]} 14.
Nb5 {[%clk 0:01:44.3]} 14... Qb6 {[%clk 0:02:35.7]} 15. Bg4 {[%clk 0:01:31.8]}
15... Rae8 {[%clk 0:02:23.6]} 16. Qa4 {[%clk 0:01:03.8]} 16... Ne5 {[%clk
0:02:01.9]} 17. Bd1 {[%clk 0:00:49.4]} 17... a6 {[%clk 0:01:49.6]} 18. Nxd4
{[%clk 0:00:27.4]} 18... cxd4 {[%clk 0:01:49.4]} 19. Bd2 {[%clk 0:00:28.3]}
19... Qxb2 {[%clk 0:01:40.7]} 20. Rc2 {[%clk 0:00:20]} 20... Qb6 {[%clk
0:01:38.8]} 21. Ba5 {[%clk 0:00:19.4]} 21... Qc6 {[%clk 0:01:38.6]} 22. Qb4
{[%clk 0:00:16.8]} 22... Nd3 {[%clk 0:01:29]} 23. Qd2 {[%clk 0:00:15.4]} 23...
Nc5 {[%clk 0:01:20.3]} 24. f3 {[%clk 0:00:13.7]} 24... e5 {[%clk 0:01:05.3]} 25.
Rb2 {[%clk 0:00:13.4]} 25... b5 {[%clk 0:01:01.6]} 26. cxb5 {[%clk 0:00:13]}
26... axb5 {[%clk 0:01:02.5]} 27. Be2 {[%clk 0:00:13.1]} 27... Rb8 {[%clk
0:00:59.6]} 28. Rfb1 {[%clk 0:00:12.5]} 28... Kh8 {[%clk 0:00:46.3]} 29. Bxb5
{[%clk 0:00:12.3]} 29... Qc8 {[%clk 0:00:46.2]} 30. Bc4 {[%clk 0:00:11.9]} 30...
Rxb2 {[%clk 0:00:41.6]} 31. Qxb2 {[%clk 0:00:12]} 31... Bh6 {[%clk 0:00:39.1]}
32. Bd5 {[%clk 0:00:11.1]} 32... Be3+ {[%clk 0:00:34]} 33. Kf1 {[%clk
0:00:10.7]} 33... d3 {[%clk 0:00:33.9]} 34. Bd2 {[%clk 0:00:09.5]} 34... Bd4
{[%clk 0:00:33.3]} 35. Qb6 {[%clk 0:00:08.5]} 35... Nxe4 {[%clk 0:00:30.3]} 36.
Bxe4 {[%clk 0:00:08]} 36... Bxb6 {[%clk 0:00:29.9]} 37. Rxb6 {[%clk 0:00:05.3]}
37... Qc2 {[%clk 0:00:27.8]} 38. Ke1 {[%clk 0:00:01.7]} 38... Qc5 {[%clk
0:00:27.9]} 39. Rc6 {[%clk 0:00:02.1]} 39... Qg1# {[%clk 0:00:27.9]} 0-1

[Event "Early-Titled-Tuesday-Blitz-May-07-2024"]
[Site "Chess.com"]
[Date "2024.05.07"]
[Round "7"]
[White "FairChess_on_YouTube"]
[Black "FXDon77"]
[Result "1-0"]
[WhiteElo "3088"]
[BlackElo "2878"]
[TimeControl "180+1"]
[EndTime "9:21:52 PDT"]
[Termination "FairChess_on_YouTube won by resignation"]

1. d4 {[%clk 0:03:00.9]} 1... Nf6 {[%clk 0:02:59.4]} 2. c4 {[%clk 0:02:59.6]}
2... e6 {[%clk 0:02:59.6]} 3. Nf3 {[%clk 0:02:56.2]} 3... d5 {[%clk 0:02:59.8]}
4. Bg5 {[%clk 0:02:54.1]} 4... Bb4+ {[%clk 0:02:59.3]} 5. Nc3 {[%clk 0:02:50.9]}
5... h6 {[%clk 0:02:59]} 6. Bxf6 {[%clk 0:02:47.8]} 6... Qxf6 {[%clk 0:02:59.9]}
7. Qa4+ {[%clk 0:02:47.2]} 7... Nc6 {[%clk 0:02:59.6]} 8. e3 {[%clk 0:02:47.8]}
8... O-O {[%clk 0:02:59.4]} 9. Rc1 {[%clk 0:02:45.9]} 9... Rd8 {[%clk
0:02:51.6]} 10. Be2 {[%clk 0:02:42]} 10... Bd7 {[%clk 0:02:27.5]} 11. Qb3 {[%clk
0:02:41.6]} 11... dxc4 {[%clk 0:02:26.9]} 12. Qxc4 {[%clk 0:02:40.7]} 12... Qe7
{[%clk 0:02:11.3]} 13. O-O {[%clk 0:02:39.4]} 13... a6 {[%clk 0:02:08.4]} 14. a3
{[%clk 0:02:35.4]} 14... Bd6 {[%clk 0:02:03.5]} 15. Ne4 {[%clk 0:02:27.5]} 15...
e5 {[%clk 0:01:58.3]} 16. d5 {[%clk 0:02:08.8]} 16... Na7 {[%clk 0:01:45.6]} 17.
Nxd6 {[%clk 0:02:05.7]} 17... cxd6 {[%clk 0:01:45]} 18. Qc7 {[%clk 0:02:04.2]}
18... Rab8 {[%clk 0:01:28.1]} 19. Qb6 {[%clk 0:01:57.4]} 19... Nc8 {[%clk
0:01:19.7]} 20. Qc7 {[%clk 0:01:57.5]} 20... Na7 {[%clk 0:01:19.6]} 21. Nd2
{[%clk 0:01:51.4]} 21... Qf8 {[%clk 0:01:05.7]} 22. Qb6 {[%clk 0:01:46.4]} 22...
Nc8 {[%clk 0:01:01.3]} 23. Qc7 {[%clk 0:01:46.7]} 23... Na7 {[%clk 0:01:01.5]}
24. Ne4 {[%clk 0:01:30]} 24... Bb5 {[%clk 0:00:57.4]} 25. Bxb5 {[%clk
0:01:26.2]} 25... Nxb5 {[%clk 0:00:57.7]} 26. Qb6 {[%clk 0:01:26]} 26... f5
{[%clk 0:00:57.7]} 27. Nd2 {[%clk 0:01:22.6]} 27... Ra8 {[%clk 0:00:24.7]} 28.
a4 {[%clk 0:01:07.5]} 28... Na7 {[%clk 0:00:24.8]} 29. Rc7 {[%clk 0:01:05.7]}
29... Rdc8 {[%clk 0:00:14.5]} 30. Rfc1 {[%clk 0:00:52.4]} 30... Rxc7 {[%clk
0:00:14.6]} 31. Rxc7 {[%clk 0:00:53.3]} 31... Rc8 {[%clk 0:00:03.9]} 32. Qxb7
{[%clk 0:00:41.7]} 32... Rxc7 {[%clk 0:00:03.3]} 33. Qxc7 {[%clk 0:00:42.6]}
33... Nc8 {[%clk 0:00:03.4]} 34. b4 {[%clk 0:00:42.4]} 34... Qe8 {[%clk
0:00:03.2]} 35. b5 {[%clk 0:00:41.5]} 35... axb5 {[%clk 0:00:03.4]} 36. axb5
{[%clk 0:00:42.4]} 36... Ne7 {[%clk 0:00:02.1]} 37. Qxd6 {[%clk 0:00:39.7]}
37... Qxb5 {[%clk 0:00:01.5]} 38. Qxe7 {[%clk 0:00:38.6]} 38... Qxd5 {[%clk
0:00:02.2]} 39. Qb4 {[%clk 0:00:36.1]} 39... e4 {[%clk 0:00:02.5]} 40. Qc4
{[%clk 0:00:36]} 40... Qxc4 {[%clk 0:00:02.1]} 41. Nxc4 {[%clk 0:00:35.6]} 1-0

[Event "Early-Titled-Tuesday-Blitz-May-07-2024"]
[Site "Chess.com"]
[Date "2024.05.07"]
[Round "7"]
[White "PawnEatingZombie"]
[Black "dianamirza"]
[Result "1-0"]
[WhiteElo "2232"]
[BlackElo "1928"]
[TimeControl "180+1"]
[EndTime "9:21:52 PDT"]
[Termination "PawnEatingZombie won by resignation"]

1. e4 {[%clk 0:03:00.9]} 1... d5 {[%clk 0:02:52]} 2. exd5 {[%clk 0:02:59.6]}
2... Qxd5 {[%clk 0:02:52.9]} 3. Nc3 {[%clk 0:02:59.5]} 3... Qd8 {[%clk
0:02:53.8]} 4. Bc4 {[%clk 0:02:57.2]} 4... Nf6 {[%clk 0:02:54.7]} 5. d3 {[%clk
0:02:57]} 5... a6 {[%clk 0:02:54.8]} 6. a4 {[%clk 0:02:56]} 6... e6 {[%clk
0:02:50.8]} 7. Nge2 {[%clk 0:02:55.5]} 7... Bd6 {[%clk 0:02:51.2]} 8. h3 {[%clk
0:02:53]} 8... O-O {[%clk 0:02:52.1]} 9. O-O {[%clk 0:02:52.6]} 9... Nc6 {[%clk
0:02:53]} 10. Ng3 {[%clk 0:02:48.5]} 10... Ne5 {[%clk 0:02:52.1]} 11. Bb3 {[%clk
0:02:46.4]} 11... c5 {[%clk 0:02:47.7]} 12. d4 {[%clk 0:02:32.8]} 12... cxd4
{[%clk 0:02:42.9]} 13. Qxd4 {[%clk 0:02:32.8]} 13... Nc6 {[%clk 0:02:41]} 14.
Qh4 {[%clk 0:02:17.4]} 14... Bxg3 {[%clk 0:02:40.2]} 15. Qxg3 {[%clk 0:02:12.2]}
15... Nd4 {[%clk 0:02:37.8]} 16. Be3 {[%clk 0:01:56.4]} 16... Ne4 {[%clk
0:02:35.4]} 17. Qh2 {[%clk 0:01:25.4]} 17... Nxc3 {[%clk 0:02:27.6]} 18. bxc3
{[%clk 0:01:12.7]} 18... Ne2+ {[%clk 0:02:25.3]} 19. Kh1 {[%clk 0:01:13.2]}
19... Nxc3 {[%clk 0:02:26.2]} 20. Qe5 {[%clk 0:01:06.6]} 20... Qf6 {[%clk
0:02:20.3]} 21. Qxf6 {[%clk 0:00:43.3]} 21... gxf6 {[%clk 0:02:21.2]} 22. Bd4
{[%clk 0:00:42.9]} 22... Ne4 {[%clk 0:02:14.5]} 23. Rfe1 {[%clk 0:00:34.8]}
23... f5 {[%clk 0:02:08.2]} 24. f3 {[%clk 0:00:34.9]} 24... Ng3+ {[%clk
0:01:53]} 25. Kh2 {[%clk 0:00:34.1]} 25... Nh5 {[%clk 0:01:53.7]} 26. g4 {[%clk
0:00:32]} 26... fxg4 {[%clk 0:01:52.1]} 27. hxg4 {[%clk 0:00:30.7]} 27... Nf4
{[%clk 0:01:49]} 28. Kg3 {[%clk 0:00:29.6]} 28... Ng6 {[%clk 0:01:47.7]} 29. Bf6
{[%clk 0:00:29.2]} 29... Bd7 {[%clk 0:01:45.3]} 30. Rh1 {[%clk 0:00:28.8]} 30...
Bc6 {[%clk 0:01:38.4]} 31. Rh6 {[%clk 0:00:27.8]} 31... Rfc8 {[%clk 0:01:10.3]}
32. Rah1 {[%clk 0:00:26.4]} 32... Nf8 {[%clk 0:01:10]} 33. R1h5 {[%clk
0:00:12.5]} 33... b5 {[%clk 0:01:02.1]} 34. Rg5+ {[%clk 0:00:12.2]} 34... Ng6
{[%clk 0:01:01.6]} 35. Rgh5 {[%clk 0:00:12.5]} 35... Nf8 {[%clk 0:01:01.6]} 36.
axb5 {[%clk 0:00:11.6]} 36... Bxb5 {[%clk 0:00:56.8]} 37. c4 {[%clk 0:00:10.1]}
37... Bxc4 {[%clk 0:00:55.2]} 38. Bc2 {[%clk 0:00:10.6]} 38... Ng6 {[%clk
0:00:28.5]} 39. Rxh7 {[%clk 0:00:09.8]} 1-0

[Event "Early-Titled-Tuesday-Blitz-May-07-2024"]
[Site "Chess.com"]
[Date "2024.05.07"]
[Round "7"]
[White "viktorskliarov"]
[Black "Rakhmanov_Aleksandr"]
[Result "1-0"]
[WhiteElo "2658"]
[BlackElo "2843"]
[TimeControl "180+1"]
[EndTime "9:21:56 PDT"]
[Termination "viktorskliarov won on time"]

1. e4 {[%clk 0:03:00.9]} 1... d5 {[%clk 0:02:59.5]} 2. exd5 {[%clk 0:03:00.9]}
2... c6 {[%clk 0:03:00]} 3. dxc6 {[%clk 0:02:54.4]} 3... Nxc6 {[%clk 0:03:00.9]}
4. Bc4 {[%clk 0:02:54.3]} 4... e5 {[%clk 0:02:58.4]} 5. Nc3 {[%clk 0:02:52.6]}
5... Nf6 {[%clk 0:02:55.6]} 6. Nge2 {[%clk 0:02:48.8]} 6... Bc5 {[%clk
0:02:53.4]} 7. h3 {[%clk 0:02:48.3]} 7... a6 {[%clk 0:02:42.7]} 8. d3 {[%clk
0:02:45.7]} 8... h6 {[%clk 0:02:39.7]} 9. a3 {[%clk 0:02:34.4]} 9... O-O {[%clk
0:02:37.9]} 10. Ng3 {[%clk 0:02:29.3]} 10... b5 {[%clk 0:02:28.8]} 11. Ba2
{[%clk 0:02:25.7]} 11... Bb7 {[%clk 0:02:28.7]} 12. Be3 {[%clk 0:02:12.5]} 12...
Nd4 {[%clk 0:02:26.3]} 13. Nce4 {[%clk 0:02:12.2]} 13... Bb6 {[%clk 0:02:15.4]}
14. c3 {[%clk 0:02:07.9]} 14... Nxe4 {[%clk 0:01:38.1]} 15. dxe4 {[%clk
0:02:07.4]} 15... Ne6 {[%clk 0:00:42.9]} 16. Qxd8 {[%clk 0:02:06.6]} 16... Bxd8
{[%clk 0:00:43.3]} 17. O-O-O {[%clk 0:02:03.4]} 17... Nf4 {[%clk 0:00:30.1]} 18.
Rhg1 {[%clk 0:01:53.6]} 18... Bh4 {[%clk 0:00:22.1]} 19. Bxf4 {[%clk 0:00:33.7]}
19... exf4 {[%clk 0:00:21.7]} 20. Nf5 {[%clk 0:00:34.3]} 20... Bxf2 {[%clk
0:00:19.1]} 21. Rgf1 {[%clk 0:00:34.6]} 21... Bxe4 {[%clk 0:00:16.5]} 22. Ne7+
{[%clk 0:00:33.5]} 22... Kh7 {[%clk 0:00:12.8]} 23. Rxf2 {[%clk 0:00:34.4]}
23... g5 {[%clk 0:00:10.5]} 24. Re2 {[%clk 0:00:21.5]} 24... f5 {[%clk
0:00:05.2]} 25. Bd5 {[%clk 0:00:18.7]} 25... Rad8 {[%clk 0:00:02.9]} 26. Bxe4
{[%clk 0:00:17.1]} 26... Rxd1+ {[%clk 0:00:03.1]} 27. Kxd1 {[%clk 0:00:17.7]}
27... fxe4 {[%clk 0:00:04]} 28. Rxe4 {[%clk 0:00:18.3]} 28... f3 {[%clk
0:00:04.8]} 29. gxf3 {[%clk 0:00:18.8]} 29... Rxf3 {[%clk 0:00:05.7]} 30. h4
{[%clk 0:00:19.2]} 30... Rf1+ {[%clk 0:00:04.8]} 31. Kc2 {[%clk 0:00:19.2]}
31... Rf2+ {[%clk 0:00:05.1]} 32. Kb3 {[%clk 0:00:19.2]} 32... Kg7 {[%clk
0:00:04.3]} 33. hxg5 {[%clk 0:00:18.7]} 33... hxg5 {[%clk 0:00:05.2]} 34. Nd5
{[%clk 0:00:14.3]} 34... Rf6 {[%clk 0:00:05.6]} 35. Nxf6 {[%clk 0:00:14.3]} 1-0

[Event "Early-Titled-Tuesday-Blitz-May-07-2024"]
[Site "Chess.com"]
[Date "2024.05.07"]
[Round "7"]
[White "NowInChess"]
[Black "OppieZippy"]
[Result "1/2-1/2"]
[WhiteElo "2242"]
[BlackElo "2359"]
[TimeControl "180+1"]
[EndTime "9:21:56 PDT"]
[Termination "Game drawn by stalemate"]

1. e4 {[%clk 0:03:00.9]} 1... h6 {[%clk 0:03:00.9]} 2. d3 {[%clk 0:02:56.7]}
2... c6 {[%clk 0:03:00.7]} 3. g3 {[%clk 0:02:56.8]} 3... d5 {[%clk 0:03:01.2]}
4. Nd2 {[%clk 0:02:56.5]} 4... g6 {[%clk 0:03:01.6]} 5. Bg2 {[%clk 0:02:56.5]}
5... Bg7 {[%clk 0:03:01.6]} 6. Ngf3 {[%clk 0:02:56.1]} 6... Nf6 {[%clk
0:03:01.9]} 7. O-O {[%clk 0:02:55]} 7... O-O {[%clk 0:03:02.3]} 8. Re1 {[%clk
0:02:53.9]} 8... dxe4 {[%clk 0:03:02.2]} 9. dxe4 {[%clk 0:02:53.6]} 9... Qc7
{[%clk 0:02:59.9]} 10. Qe2 {[%clk 0:02:48.4]} 10... Be6 {[%clk 0:03:00]} 11. h3
{[%clk 0:02:40.8]} 11... c5 {[%clk 0:03:00.2]} 12. c3 {[%clk 0:02:37]} 12... Nc6
{[%clk 0:03:00.5]} 13. Nc4 {[%clk 0:02:34.3]} 13... Rad8 {[%clk 0:02:59.5]} 14.
Bf4 {[%clk 0:02:33.1]} 14... Qc8 {[%clk 0:02:59.2]} 15. Rad1 {[%clk 0:02:28.6]}
15... Nh5 {[%clk 0:02:57.2]} 16. Be3 {[%clk 0:02:22.8]} 16... b6 {[%clk
0:02:53.9]} 17. Kh2 {[%clk 0:02:17]} 17... Nf6 {[%clk 0:02:53.6]} 18. Nh4 {[%clk
0:02:00.2]} 18... Rxd1 {[%clk 0:02:44.3]} 19. Rxd1 {[%clk 0:02:01.1]} 19... Rd8
{[%clk 0:02:44.8]} 20. Rxd8+ {[%clk 0:01:57.6]} 20... Qxd8 {[%clk 0:02:45.7]}
21. f4 {[%clk 0:01:57.5]} 21... b5 {[%clk 0:02:31.3]} 22. Nd2 {[%clk 0:01:52.2]}
22... Qb6 {[%clk 0:02:27.7]} 23. b4 {[%clk 0:01:44.2]} 23... Bxa2 {[%clk
0:02:26]} 24. Bxc5 {[%clk 0:01:40.7]} 24... Qd8 {[%clk 0:02:25.5]} 25. e5 {[%clk
0:01:24.4]} 25... Nd5 {[%clk 0:02:24.5]} 26. Qxb5 {[%clk 0:01:21.8]} 26... Nxc3
{[%clk 0:02:09.5]} 27. Qxc6 {[%clk 0:01:12.5]} 27... Qxd2 {[%clk 0:02:09.4]} 28.
Nf3 {[%clk 0:01:07.2]} 28... Qe2 {[%clk 0:02:02.2]} 29. Bxa7 {[%clk 0:00:40.7]}
29... Nd1 {[%clk 0:01:51.2]} 30. Ng1 {[%clk 0:00:30.6]} 30... Qb2 {[%clk
0:01:44.2]} 31. Qf3 {[%clk 0:00:19.6]} 31... Nc3 {[%clk 0:01:39.8]} 32. Bd4
{[%clk 0:00:17.4]} 32... Qxb4 {[%clk 0:01:34.5]} 33. Qxc3 {[%clk 0:00:16.9]}
33... Qb8 {[%clk 0:01:31.3]} 34. Qb2 {[%clk 0:00:16.2]} 34... Qxb2 {[%clk
0:01:27.9]} 35. Bxb2 {[%clk 0:00:16.3]} 35... Be6 {[%clk 0:01:28.8]} 36. Nf3
{[%clk 0:00:15.1]} 36... Kf8 {[%clk 0:01:29.3]} 37. Nd4 {[%clk 0:00:15.3]} 37...
Bd7 {[%clk 0:01:29.2]} 38. Ba3 {[%clk 0:00:15.5]} 38... Ke8 {[%clk 0:01:28.9]}
39. Nc6 {[%clk 0:00:15.4]} 39... Bf8 {[%clk 0:01:27.2]} 40. Kg1 {[%clk
0:00:13.8]} 40... Be6 {[%clk 0:01:27]} 41. Kf2 {[%clk 0:00:13.7]} 41... Kd7
{[%clk 0:01:27.3]} 42. Ke3 {[%clk 0:00:13.2]} 42... Bc4 {[%clk 0:01:28]} 43. Nd4
{[%clk 0:00:12.9]} 43... Ba2 {[%clk 0:01:25.9]} 44. Be4 {[%clk 0:00:12.9]} 44...
Bg7 {[%clk 0:01:22]} 45. Bd3 {[%clk 0:00:11.5]} 45... Ke8 {[%clk 0:01:20.7]} 46.
Bb5+ {[%clk 0:00:11.3]} 46... Kf8 {[%clk 0:01:20.7]} 47. Nc6 {[%clk 0:00:10.6]}
47... Be6 {[%clk 0:01:21.1]} 48. Bxe7+ {[%clk 0:00:10]} 48... Kg8 {[%clk
0:01:21.9]} 49. Bf6 {[%clk 0:00:09.9]} 49... h5 {[%clk 0:01:22.5]} 50. Bxg7
{[%clk 0:00:09.3]} 50... Kxg7 {[%clk 0:01:23.2]} 51. Nd4 {[%clk 0:00:09.3]}
51... Bxh3 {[%clk 0:01:23.3]} 52. Bc4 {[%clk 0:00:08]} 52... Kf8 {[%clk
0:01:22.7]} 53. Nf3 {[%clk 0:00:06.9]} 53... Bd7 {[%clk 0:01:20.9]} 54. Ng5
{[%clk 0:00:06.9]} 54... Be8 {[%clk 0:01:21.6]} 55. Kd4 {[%clk 0:00:04.4]} 55...
Ke7 {[%clk 0:01:22.1]} 56. Kc5 {[%clk 0:00:04.6]} 56... f6 {[%clk 0:01:22.8]}
57. exf6+ {[%clk 0:00:03.1]} 57... Kxf6 {[%clk 0:01:23.5]} 58. Bd3 {[%clk
0:00:01.9]} 58... Bd7 {[%clk 0:01:23.1]} 59. Kd6 {[%clk 0:00:01.9]} 59... Kg7
{[%clk 0:01:24]} 60. Kxd7 {[%clk 0:00:01.7]} 60... Kf6 {[%clk 0:01:24.9]} 61.
Kd6 {[%clk 0:00:01.5]} 61... h4 {[%clk 0:01:25.8]} 62. Kd5 {[%clk 0:00:01.7]}
62... Kg7 {[%clk 0:01:26.7]} 63. Be4 {[%clk 0:00:01.9]} 63... Kh6 {[%clk
0:01:27.6]} 64. Bg2 {[%clk 0:00:02.5]} 64... hxg3 {[%clk 0:01:28.5]} 65. Bf3
{[%clk 0:00:02.4]} 65... Kg7 {[%clk 0:01:28.8]} 66. Bg2 {[%clk 0:00:03.3]} 66...
Kf6 {[%clk 0:01:29.7]} 67. Ke4 {[%clk 0:00:03.8]} 67... Kg7 {[%clk 0:01:29.3]}
68. Kf3 {[%clk 0:00:04.7]} 68... Kh6 {[%clk 0:01:30.2]} 69. Kxg3 {[%clk
0:00:05.4]} 69... Kg7 {[%clk 0:01:31.1]} 70. Kf3 {[%clk 0:00:06.2]} 70... Kf6
{[%clk 0:01:32]} 71. Ke4 {[%clk 0:00:06.9]} 71... Kg7 {[%clk 0:01:32.9]} 72. Ke5
{[%clk 0:00:07.4]} 72... Kf8 {[%clk 0:01:33.2]} 73. Be4 {[%clk 0:00:08.3]} 73...
Kg7 {[%clk 0:01:33.8]} 74. Ke6 {[%clk 0:00:08.8]} 74... Kh6 {[%clk 0:01:34.4]}
75. Kf6 {[%clk 0:00:09.7]} 75... Kh5 {[%clk 0:01:34.8]} 76. Bxg6+ {[%clk
0:00:10.3]} 76... Kh6 {[%clk 0:01:35.7]} 77. f5 {[%clk 0:00:10.8]} 1/2-1/2

[Event "Early-Titled-Tuesday-Blitz-May-07-2024"]
[Site "Chess.com"]
[Date "2024.05.07"]
[Round "7"]
[White "jaramsdal"]
[Black "VacheH009"]
[Result "0-1"]
[WhiteElo "2414"]
[BlackElo "2573"]
[TimeControl "180+1"]
[EndTime "9:21:57 PDT"]
[Termination "VacheH009 won by resignation"]

1. e4 {[%clk 0:03:00.9]} 1... e6 {[%clk 0:02:57.7]} 2. d4 {[%clk 0:03:00.7]}
2... d5 {[%clk 0:02:58.6]} 3. Nd2 {[%clk 0:03:01]} 3... c5 {[%clk 0:02:55.5]} 4.
exd5 {[%clk 0:02:59.2]} 4... Qxd5 {[%clk 0:02:56.4]} 5. Ngf3 {[%clk 0:02:50.8]}
5... cxd4 {[%clk 0:02:56.5]} 6. Bc4 {[%clk 0:02:45.2]} 6... Qd6 {[%clk
0:02:56.6]} 7. O-O {[%clk 0:02:44]} 7... Nf6 {[%clk 0:02:57]} 8. Re1 {[%clk
0:02:38]} 8... Nc6 {[%clk 0:02:55.7]} 9. Ne4 {[%clk 0:02:38.3]} 9... Nxe4 {[%clk
0:02:54.7]} 10. Rxe4 {[%clk 0:02:39.2]} 10... Qc5 {[%clk 0:02:52.3]} 11. Bb3
{[%clk 0:02:10.7]} 11... Be7 {[%clk 0:02:33.3]} 12. Nxd4 {[%clk 0:02:10]} 12...
Nxd4 {[%clk 0:02:33.4]} 13. Rxd4 {[%clk 0:02:10.9]} 13... O-O {[%clk 0:02:32.1]}
14. Be3 {[%clk 0:02:08.9]} 14... Qf5 {[%clk 0:02:21.2]} 15. c3 {[%clk
0:02:06.2]} 15... e5 {[%clk 0:02:19.2]} 16. Rd2 {[%clk 0:02:03.6]} 16... Bg5
{[%clk 0:01:56.7]} 17. Bc2 {[%clk 0:01:56]} 17... Qf6 {[%clk 0:01:48.3]} 18. Qh5
{[%clk 0:01:33.9]} 18... h6 {[%clk 0:01:37.6]} 19. Bxg5 {[%clk 0:01:31.7]} 19...
Qxg5 {[%clk 0:01:38.5]} 20. Qxg5 {[%clk 0:01:32.3]} 20... hxg5 {[%clk
0:01:39.4]} 21. Re1 {[%clk 0:01:31.9]} 21... f6 {[%clk 0:01:34.4]} 22. Bb3+
{[%clk 0:01:30.3]} 22... Kh7 {[%clk 0:01:30.5]} 23. Bd5 {[%clk 0:01:30.3]} 23...
Rb8 {[%clk 0:01:28.2]} 24. g3 {[%clk 0:01:27.9]} 24... Bf5 {[%clk 0:01:25.4]}
25. Bf3 {[%clk 0:01:18]} 25... g4 {[%clk 0:01:10.3]} 26. Be4 {[%clk 0:01:15.9]}
26... Kg6 {[%clk 0:01:09.5]} 27. Bxf5+ {[%clk 0:01:10.5]} 27... Kxf5 {[%clk
0:01:10.4]} 28. Rd7 {[%clk 0:01:11.1]} 28... Rfd8 {[%clk 0:00:48.2]} 29. Red1
{[%clk 0:01:11]} 29... Rxd7 {[%clk 0:00:46.9]} 30. Rxd7 {[%clk 0:01:11.9]} 30...
g6 {[%clk 0:00:46.1]} 31. Kg2 {[%clk 0:01:04.8]} 31... a5 {[%clk 0:00:42.7]} 32.
h4 {[%clk 0:01:04.8]} 32... gxh3+ {[%clk 0:00:36.8]} 33. Kxh3 {[%clk 0:01:05.7]}
33... b6 {[%clk 0:00:32.9]} 34. Rd6 {[%clk 0:01:04.3]} 34... b5 {[%clk
0:00:30.3]} 35. Rd5 {[%clk 0:01:04.7]} 35... Ke6 {[%clk 0:00:25.2]} 36. Rc5
{[%clk 0:01:05]} 36... Kd6 {[%clk 0:00:23.7]} 37. b4 {[%clk 0:01:05.5]} 37...
axb4 {[%clk 0:00:16.4]} 38. cxb4 {[%clk 0:01:06.4]} 38... Ra8 {[%clk 0:00:15]}
39. Rxb5 {[%clk 0:01:06.8]} 39... Rxa2 {[%clk 0:00:15.6]} 40. Rb6+ {[%clk
0:01:07.4]} 40... Ke7 {[%clk 0:00:16.2]} 41. f3 {[%clk 0:01:03.1]} 41... Rb2
{[%clk 0:00:13.7]} 42. g4 {[%clk 0:01:01.8]} 42... Rb3 {[%clk 0:00:13.8]} 43.
Kg3 {[%clk 0:01:01.9]} 43... e4 {[%clk 0:00:13.6]} 44. Rb7+ {[%clk 0:01:02]}
44... Ke6 {[%clk 0:00:13.2]} 45. Rb6+ {[%clk 0:01:02.4]} 45... Ke5 {[%clk
0:00:12.7]} 46. Rb5+ {[%clk 0:01:01]} 46... Kd4 {[%clk 0:00:13.2]} 47. Rb6
{[%clk 0:00:57.4]} 47... Rxf3+ {[%clk 0:00:13.4]} 48. Kg2 {[%clk 0:00:57.8]}
48... Ke5 {[%clk 0:00:11.9]} 49. Rb5+ {[%clk 0:00:56]} 49... Kf4 {[%clk
0:00:11.5]} 50. g5 {[%clk 0:00:52.7]} 50... f5 {[%clk 0:00:10.7]} 51. Rc5 {[%clk
0:00:52.6]} 51... Rb3 {[%clk 0:00:11]} 52. Rc6 {[%clk 0:00:52.5]} 52... Kxg5
{[%clk 0:00:09.2]} 53. b5 {[%clk 0:00:52.2]} 53... Rxb5 {[%clk 0:00:08.8]} 0-1